Cogmind - Beta 16.1 @@@ ROGUE MODE // 2026.06.21 @ 08:24:01 Player: Godsword Result: Self-destructed Performance ------------- Evolutions (2) 1000 Regions Visited (4) 800 Robots Destroyed (13) 65 Value Destroyed (216) 216 Prototype IDs (1) 20 Alien Tech Used (0) 0 Bonus (0) 0 TOTAL SCORE: 2101 Bonus ------- None Cogmind --------- Core Integrity 520/550 Matter 10/300 Energy 140/140 System Corruption 0% Temperature Cool (0) Movement Rolling (80) Location -8/Materials Parts ------- > --- POWER (1) -------- Light Deuterium Engine > --- PROPULSION (4) --- Wheel Wheel Wheel Wheel > --- UTILITY (3) ------ Targeting Computer > --- WEAPON (3) ------- Rocket Launcher Rocket Launcher > --- INVENTORY (5) ---- Light Ion Engine Rocket Launcher Rocket Launcher Peak State ------------ > --- POWER ------------ Light Deuterium Engine > --- PROPULSION ------- Wheel Wheel Wheel Wheel > --- UTILITY ---------- Structural Scanner Targeting Computer Hacking Suite > --- WEAPON ----------- Rocket Launcher Rocket Launcher > --- INVENTORY -------- Light Ion Engine Rocket Launcher Rocket Launcher [Rating: 16] Favorites ----------- Power Light Ion Engine Engine Light Ion Engine Propulsion Backup Propulsion I Wheel Wheel Hover Unit Backup Propulsion I Flight Unit Flight Unit Utility Backup Plating I Device Structural Scanner Processor Targeting Computer Hackware Hacking Suite Protection Backup Plating I Weapon Backup Laser I Energy Gun Backup Laser I Launcher Rocket Launcher Build | -11 -10 -9 -9 -8 ------- Run | Yrd Mat Mat Min Mat Slots Evolved 4 | . . 2 . 2 Power . | . . . . . Propulsion 2 | . . 2 . . Utility 1 | . . . . 1 Weapon 1 | . . . . 1 Parts Attached 17 | . . 10 . 7 Power 3 | . . 2 . 1 Engine 3 | . . 2 . 1 Core . | . . . . . Reactor . | . . . . . Propulsion 6 | . . 2 . 4 Treads . | . . . . . Leg . | . . . . . Wheel 4 | . . . . 4 Hover . | . . . . . Flight 2 | . . 2 . . Utility 3 | . . 2 . 1 Device 1 | . . 1 . . Storage . | . . . . . Processor 1 | . . 1 . . Hackware 1 | . . . . 1 Protection . | . . . . . Artifact . | . . . . . Weapon 5 | . . 4 . 1 Energy Gun . | . . . . . Energy Cannon . | . . . . . Ballistic Gun . | . . . . . Ballistic Cannon . | . . . . . Launcher 5 | . . 4 . 1 Special Weapon . | . . . . . Impact Weapon . | . . . . . Slashing Weapon . | . . . . . Piercing Weapon . | . . . . . Special Melee Weapon . | . . . . . Unidentified Prototypes 1 | . . 1 . . Parts Lost 8 | . 4 . . 4 Power 2 | . 1 . . 1 Propulsion 3 | . 2 . . 1 Utility 3 | . 1 . . 2 Weapon . | . . . . . Highest Loss Streak 4 | . 4 . . 2 To Critical Strikes . | . . . . . Average Backups 3 | . 3 4 5 4 Power . | . 1 . 1 1 Propulsion . | . . . . . Utility . | . 1 . . . Weapon 2 | . . 3 4 3 Tool/Special . | . . . . . Unused Backups 5 | . . 3 . 2 Power 1 | . . . . 1 Propulsion . | . . . . . Utility 2 | . . 2 . . Weapon 2 | . . 1 . 1 Tool/Special . | . . . . . Average Slot Usage (%) 66 | . 93 36 66 63 Engine 10 | . 13 9 11 8 Wheel 4 | . . . . 18 Hover 10 | . 26 . . . Flight 5 | . . 8 22 5 Device 4 | . . 4 11 9 Processor 3 | . . 3 11 9 Hackware 1 | . . . . 5 Protection 10 | . 26 1 . . Energy Gun 11 | . 26 3 . . Launcher 4 | . . 5 11 7 Peak Build Rating 16 | . 7 9 7 16 Average Rating 6 | . 6 4 7 10 On Entrance 3 | . . 3 7 7 Avg Prop Armor Cover (%) . | . . . . . Naked Turns 7 | . 4 3 . . Heaviest Build 14 | . 5 8 8 14 Greatest Support 40 | 3 12 8 8 40 Greatest Overweight (x) 1 | . . . . 1 Average Overweight (x) . | . . . . . Largest Inventory Capacity 5 | 5 5 5 5 5 Average Capacity 5 | 5 5 5 5 5 Most Carried 5 | 1 4 5 5 5 Average Carried 4 | . 3 4 5 4 Final Capacity 5 | 5 5 5 5 5 Final Carried 5 | 1 4 5 5 3 Class Distribution -------------------- 100% | Mutant Dominant Class ---------------- Mutant | -10/Materials Mutant | -9/Materials Mutant | -9/Mines Mutant | -8/Materials Resources | -11 -10 -9 -9 -8 ----------- Run | Yrd Mat Mat Min Mat Matter Collected 329 | 200 51 51 20 7 Remotely . | . . . . . Salvage Created 89 | . 13 40 27 9 Parts 16 | . . 8 4 4 Haulers Intercepted 1 | . . 1 . . Recyclers Shooed . | . . . . . Parts Field Recycled . | . . . . . Retrieved Matter . | . . . . . Parts Self-Destructed . | . . . . . Prevented . | . . . . . Parts Restored . | . . . . . Kills | -11 -10 -9 -9 -8 ------- Run | Yrd Mat Mat Min Mat Combat Hostiles Destroyed 8 | . . 3 4 1 AOE 8 | . . 3 4 1 Classes Destroyed 6 | . 1 2 . 3 Worker 1 | . . . . 1 Hauler 1 | . . 1 . . Operator 2 | . . . . 2 Watcher 1 | . 1 . . . Swarmer 7 | . . 3 4 . Sentry 1 | . . . . 1 Best Kill Streak 6 | . 1 4 4 6 Combat Bots Only 4 | . . 3 4 1 Max Kills in Single Turn 2 | . 1 2 2 2 Gunslinging . | . . . . . Exploded 2 | . . 2 2 1 Melee . | . . . . . Uniques/NPCs Destroyed . | . . . . . Combat | -11 -10 -9 -9 -8 -------- Run | Yrd Mat Mat Min Mat Hostile Shots Fired 70 | . 33 7 6 24 Missed 29 | . 13 4 3 9 Hits 41 | . 20 3 3 15 Projectile 41 | . 20 3 3 15 Damage Taken 600 | . 273 21 44 262 Core 72 | . 42 . . 30 Absorbed by Shields . | . . . . . Core Remaining (%) 94 | 100 83 . 100 . Volleys Fired 16 | . 4 2 2 8 Largest 2 | . 2 2 1 2 Hottest 66 | . 60 66 33 66 Shots Fired 26 | . 8 4 2 12 Gun 8 | . 8 . . . Cannon . | . . . . . Launcher 18 | . . 4 2 12 Special . | . . . . . Kinetic . | . . . . . Thermal 8 | . 8 . . . Explosive 18 | . . 4 2 12 Electromagnetic . | . . . . . Robot Hit Streak 3 | . 3 1 1 3 Robot Miss Streak 4 | . 4 1 2 2 Penetration Max . | . . . . . Secondary Targets 1 | . 1 . . . Max Gunslinging Chain 1 | . 1 . . . Shots Hit Robots 12 | . 3 1 1 7 Core Hits 18 | . 2 4 6 6 Critical Kills . | . . . . . Critical Parts Destroyed . | . . . . . Critical Strikes . | . . . . . Melee Attacks . | . . . . . Impact . | . . . . . Slashing . | . . . . . Piercing . | . . . . . Sneak Attacks . | . . . . . Combat Hostiles . | . . . . . Follow-up Attacks . | . . . . . Damage Inflicted 778 | . 41 233 172 332 Guns 28 | . 28 . . . Cannons . | . . . . . Explosions 737 | . . 233 172 332 Melee . | . . . . . Ramming 13 | . 13 . . . Kinetic . | . . . . . Thermal 28 | . 28 . . . Explosive 737 | . . 233 172 332 Electromagnetic . | . . . . . Impact . | . . . . . Slashing . | . . . . . Piercing . | . . . . . Highest Corruption . | . . . . . Average Corruption . | . . . . . Corruption Purged . | . . . . . Corruption Blocked . | . . . . . Overload Shots . | . . . . . Overflow Damage 49 | . . . . 49 Projectiles . | . . . . . Explosions 49 | . . . . 49 Melee . | . . . . . Knockbacks . | . . . . . Impact . | . . . . . Kinetic . | . . . . . Secondary . | . . . . . Self-Inflicted Damage 75 | . 6 . 24 45 Shots 3 | . . . 1 2 Rammed 3 | . 3 . . . Targets Rammed 3 | . 3 . . . Kicked . | . . . . . Crushed . | . . . . . Highest Temperature 45 | . 45 21 . 6 Average Temperature 17 | . 20 20 . 4 Received Heat Transfer 210 | . 147 . . 63 Siege Activations . | . . . . . Martial Activations . | . . . . . Shielding Activations . | . . . . . Robots Disrupted . | . . . . . Combat Hostiles . | . . . . . Robots Corrupted . | . . . . . Combat Hostiles . | . . . . . Parts Fried . | . . . . . Impact Corruptions . | . . . . . Robots Melted . | . . . . . Combat Hostiles . | . . . . . Parts Melted 1 | . 1 . . . Heat Transferred 111 | . 111 . . . Parts Sabotaged . | . . . . . Parts Stolen . | . . . . . Parts Stripped . | . . . . . Power Chain Reactions . | . . . . . Alert | -11 -10 -9 -9 -8 ------- Run | Yrd Mat Mat Min Mat Maximum Alert Level . | . . . . . Low Security (%) 100 | 100 100 100 100 100 Level 1 . | . . . . . Level 2 . | . . . . . Level 3 . | . . . . . Level 4 . | . . . . . Level 5 . | . . . . . High Security . | . . . . . Max Security . | . . . . . Peak Influence 190 | . 62 135 146 190 Initial 56 | . . . 40 56 Average 60 | . 12 62 113 131 Influence Increases 522 | . 97 135 106 184 Destroy 0b10 Robot/C 160 | . . 60 80 20 Destroy 0b10 Robot/NC 25 | . 5 5 . 15 Destroy Leader 34 | . 2 12 10 10 Disable Machine 75 | . . 30 . 45 Destroy Structure 138 | . . 28 16 94 Lose Combat Pursuer 90 | . 90 . . . Influence Decreases 362 | . 97 30 65 170 Entered New Map 155 | . . . 65 90 Time Decay 100 | . 30 30 . 40 Lost Part 45 | . 5 . . 40 Purge Threat 62 | . 62 . . . Squads Dispatched 4 | . 2 1 . 1 Investigation 2 | . 2 . . . Extermination . | . . . . . Reinforcement 2 | . . 1 . 1 Assault . | . . . . . Garrison . | . . . . . Intercept . | . . . . . Searches Triggered . | . . . . . Construction Impeded . | . . . . . Haulers Reinforced . | . . . . . Active Scanning Responses . | . . . . . Cargo Convoy Interrupts . | . . . . . Stealth | -11 -10 -9 -9 -8 --------- Run | Yrd Mat Mat Min Mat Distress Signals 2 | . . 1 . 1 Communications Jammed . | . . . . . Distress Signals . | . . . . . Times Spotted 28 | . 12 4 4 8 Peak Tracking Total 9 | . 9 3 4 7 Tactical Retreats 3 | . 3 . . . Traps | -11 -10 -9 -9 -8 ------- Run | Yrd Mat Mat Min Mat Traps Triggered 2 | . 2 . . . Indirectly . | . . . . . Trap Hack Attempts . | . . . . . Triggered . | . . . . . Disarmed . | . . . . . Reprogrammed . | . . . . . Reused . | . . . . . Traps Extracted . | . . . . . Installed . | . . . . . Triggered . | . . . . . Machines | -11 -10 -9 -9 -8 ---------- Run | Yrd Mat Mat Min Mat Machines Disabled 5 | . . 2 . 3 Max in Single Turn 2 | . . 1 . 2 Machines Repaired . | . . . . . Machines Dismantled . | . . . . . Machines Sabotaged . | . . . . . Overloaded Fab Kills . | . . . . . Hacking | -11 -10 -9 -9 -8 --------- Run | Yrd Mat Mat Min Mat Machines Accessed 4 | . 3 1 . . Terminals 3 | . 2 1 . . Fabricators . | . . . . . Repair Stations 1 | . 1 . . . Recycling Units . | . . . . . Scanalyzers . | . . . . . Garrison Access . | . . . . . Total Hacks 6 | . 3 3 . . Successful 2 | . 2 . . . Failed 4 | . 1 3 . . Catastrophic 1 | . 1 . . . Database Lockouts . | . . . . . Manual 2 | . 2 . . . Terminals 5 | . 2 3 . . Fabricators . | . . . . . Repair Stations 1 | . 1 . . . Recycling Units . | . . . . . Scanalyzers . | . . . . . Garrison Access . | . . . . . Terminal Hacks 1 | . 1 . . . Unreport Threat 1 | . 1 . . . Fabricator Hacks . | . . . . . Repair Station Hacks 1 | . 1 . . . Refit 1 | . 1 . . . Recycling Unit Hacks . | . . . . . Scanalyzer . | . . . . . Garrison Access Hacks . | . . . . . Unauthorized Hacks . | . . . . . Terminals . | . . . . . Fabricators . | . . . . . Repair Stations . | . . . . . Recycling Units . | . . . . . Scanalyzers . | . . . . . Garrison Access . | . . . . . Data Cores Recovered 2 | . . . . 2 Used . | . . . . . Hacking Detections 2 | . 1 1 . . Full Trace Events 1 | . . 1 . . Feedback Events . | . . . . . Feedback Blocked . | . . . . . Robot Schematics Acquired . | . . . . . Robots Built . | . . . . . Authchips . | . . . . . Time . | . . . . . Total Robot Build Rating . | . . . . . Part Schematics Acquired . | . . . . . Parts Built . | . . . . . Authchips . | . . . . . Time . | . . . . . Total Part Build Rating . | . . . . . Part Studies Acquired . | . . . . . Parts Repaired . | . . . . . Time . | . . . . . Parts Recycled . | . . . . . Recycled Matter . | . . . . . Retrieved Matter . | . . . . . Retrieved Components . | . . . . . Parts Scanalyzed . | . . . . . Part Schematics Acquired . | . . . . . Parts Damaged . | . . . . . Bothacking | -11 -10 -9 -9 -8 ------------ Run | Yrd Mat Mat Min Mat Used RIF Installer . | . . . . . Robots Hacked . | . . . . . Non-combat . | . . . . . Combat . | . . . . . Robot Hacks Applied . | . . . . . Relay Couplers Released . | . . . . . Fabnet Peak Effective % . | . . . . . Robots Rewired . | . . . . . Allies Hacked . | . . . . . Hacks Repelled . | . . . . . Allies | -11 -10 -9 -9 -8 -------- Run | Yrd Mat Mat Min Mat Total Allies . | . . . . . Largest Group . | . . . . . Highest-Rated Group . | . . . . . Highest-Rated Ally . | . . . . . Total Orders . | . . . . . Ally Attacks . | . . . . . Total Damage . | . . . . . Kills . | . . . . . Allies Corrupted . | . . . . . Allies Melted . | . . . . . Intel | -11 -10 -9 -9 -8 ------- Run | Yrd Mat Mat Min Mat Active Infowar (turns) 161 | . . 48 16 97 Structural 161 | . . 48 16 97 Robot Analysis Total . | . . . . . Derelict Logs Recovered 1 | . . . 1 . Drone Launches . | . . . . . Drone Recoveries . | . . . . . Exploration | -11 -10 -9 -9 -8 ------------- Run | Yrd Mat Mat Min Mat Turns Passed 405 | 13 155 123 16 98 Spaces Moved 533 | 24 183 182 32 112 Core 103 | 24 9 70 . . Treads . | . . . . . Legs . | . . . . . Wheels 50 | . . . . 50 Hover 174 | . 174 . . . Flight 206 | . . 112 32 62 Fastest Speed 37 | 50 50 37 37 40 Average Speed 56 | 50 74 42 37 58 Slowest Speed 120 | 50 80 50 37 120 Overloaded Moves . | . . . . . Propulsion Burnouts . | . . . . . Robots Hopped . | . . . . . Potential Cave-ins . | . . . . . Cave-ins Triggered . | . . . . . Exploration Rate (%) 17 | 3 43 16 11 16 Regions Visited 4 Branch Regions 1 Pre-discovered Areas 1 | . . . 1 . Known Exits Taken . | . . . . . Unknown Exits Taken 4 | 1 1 1 1 . Scrap Searched . | . . . . . Spaces Dug . | . . . . . Terrain Destroyed 140 | . . 32 16 92 Melee . | . . . . . Projectile . | . . . . . AOE 140 | . . 32 16 92 Terrain Rammed . | . . . . . Walls Destroyed . | . . . . . Machines Disabled . | . . . . . Actions | -11 -10 -9 -9 -8 --------- Run | Yrd Mat Mat Min Mat Total 603 | 24 192 224 33 130 Wait 15 | . . 15 . . Move 529 | 23 182 181 31 112 Hop . | . . . . . Pick Up 10 | 1 3 6 . . Fast Attach 11 | . . 5 . 6 Attach 6 | . . 4 . 2 Detach 2 | . . 2 . . Swap 2 | . . 2 . . Drop 9 | . . 7 . 2 Fire 16 | . 4 2 2 8 Melee . | . . . . . Ram 3 | . 3 . . . Kick . | . . . . . Crush . | . . . . . Escape Stasis . | . . . . . Rewire . | . . . . . Trap . | . . . . . Miscellaneous . | . . . . . Route ------- -11/Scrapyard -10/Materials -9/Materials -9/Mines -8/Materials History --------- Turn | Location | Event 3 | -11/Scrapyard | Discovered new exit (range 15) 14 | -11/Scrapyard | Entered Materials 15 | -10/Materials | Met a group of wandering Federalists 164 | -10/Materials | Discovered new exit (range 4) 169 | -10/Materials | Entered another Materials area 169 | -9/Materials | Evolved 2 slots: Propulsion x2 199 | -9/Materials | Lost 4 parts (1p2n1u) 287 | -9/Materials | Discovered new exit (range 12) 292 | -9/Materials | Entered Mines 295 | -9/Mines | Discovered new exit (range 9) 305 | -9/Mines | Learned location of Zion (-6) 308 | -9/Mines | Entered Materials 308 | -8/Materials | Evolved 2 slots: Utility x1, Weapon x1 314 | -8/Materials | Build established: Mutant 406 | -8/Materials | Self-destructed Last Messages --------------- 00384_ Acquired 7 matter. 00385_ TF Node disabled. 00385_ Imp. Sensor Array tumbles out of TF Node. 00385_ Imp. Signal Interpreter tumbles out of TF Node. 00385_ K-01 Serf collects debris. 00387_ U-05 Engineer builds a Wall. 00388_ K-01 Serf collects debris. 00389_ The unstable cave ceiling collapses. 00390_ Hacking Suite destroyed. 00392_ U-05 Engineer builds a Wall. 00395_ K-01 Serf cleans the Material Processor. 00397_ U-05 Engineer lays Concrete. 00398_ U-05 Engineer builds a Wall. 00399_ W-25 Informer sends out distress signal. 00399_ K-01 Serf collects debris. 00401_ The unstable cave ceiling collapses. 00401_ ALERT: Hostiles spotted, dispatching reinforcements to Terminal M002. 00405_ Structural Scanner destroyed. Map ----- +----------------------------------------------------+ | ???????????????????????????????????????######### # | | ?????????????????????????????????????????#######+# | | ??????????????????????????????????????????????? | | ?????????????????????????????????????????????????? | | ?????????????????????????????????????????????????? | | ?????????????????????????????????????????????????? | | ????????????????????????????????????????## ??????? | | ???????????????????????????????????? ##### """""?? | | ????????????????????????????????????+##### ?? | | ???????????????????????????????????? # * ? | | ???????????????????????????????????? # # ### | | ???????????????????????????????????? # ### | | ???????????????????????????????????? + | | ???????????????????????????????????? # ! | | ???????????????????????????????????? #### ## | | ?????????????????????????????????????###### ### | | ????????????????????????????????????????### ### | | ????????????????????????????????########## | | ????????????????????????????????########## | | ????????????????????????????????## """ | | ????????????????????????????????## """"" | | ????????????????????????????????## """"" # | | ????????????????????????????????## """"" / | | ?????????????????? # ####### """ # | | ?????????? !*g############### # ## | | ?????????? w @ + [ | | ?????????? h ######## # | | ????????????"Y"# ################### | | ??????????????"#########+##?????######## # | | ??????????????###### ??????????????????" # | | ????????????????????????????????????????????" ## | | ????????????????????????????????????????????" ## | | ???????????????????????????????????????????? ## | | ????????????????????????????????????????????" ## | | ????????????????????????????????????????????? ## | | ????????????????????????????????????????????? ## | | ???????????????????????????????????????????? ## | | ????????????????????????????????????????????###### | | | | | | | | | | | | | | | | | | | | | | | | | +----------------------------------------------------+ Best States ------------- Heat Dissipation 31 Energy Generation 14 Energy Capacity 140 Matter Stores 300 Matter Capacity 300 Sight Range 16 Terrain Scan Density 10 Armor Coverage 160 Evasion (%) 62 Targeting Accuracy 5 Offensive Hacking 10 Item Schematics ----------------- None Robot Schematics ------------------ None Fabricated ------------ Nothing Repaired ---------- Nothing Studied --------- None Alien Tech Used ----------------- None Achievements -------------- None Challenges ------------ None Game ------ Seed VortexSurveybotProjector Manual? 0 Play Time 00:07:49 Cumulative 40.9 hours Start 2026.06.21 @ 08:17:48 End 2026.06.21 @ 08:24:01 Sessions 1 Manual Loads 0 Difficulty Rogue Special Mode None Game No. 100 Rogue 100 Adventurer 0 Explorer 0 Win Type - Total 3 Types 3/0/0/0/0/0/0/0/0/0 Lore% 41 Gallery% 35 Achievement% 36 Wizard Run 0 Options --------- Layout 1 ASCII 0 Keyboard 0 Movement Mouse Keybinds 0 Fullscreen 1 Font 16/SmallcapsGlow Map View 50x40 Zoom Use 0% Tactical HUD 1 Map Filters NONE Filters NONE Steam SD RUN: c475c236-8cc2-43ca-aa49-19c18ffbb28c